[Event "Titled Tuesday Blitz February 21 Late 2023"]
[White "Rasulov, Vugar"]
[Black "Bortnyk, Olexandr"]
[WhiteFideId "13402390"]
[BlackFideId "14120828"]
[WhiteElo "2523"]
[BlackElo "2605"]
[Result "0-1"]
[Round "10"]
[TimeControl "180+2"]
[Date "2023.02.21"]
[WhiteClock "0:00:21"]
[BlackClock "0:01:00"]

1. d4 {[%clk 0:03:00]}  d6 {[%clk 0:02:59]} 2. Nf3 {[%clk 0:02:59]}  Nf6 {[%clk 0:03:00]} 3. c4 {[%clk 0:02:58]}  g6 {[%clk 0:02:59]} 4. Nc3 {[%clk 0:02:58]}  Bg7 {[%clk 0:03:00]} 5. e4 {[%clk 0:02:58]}  O-O {[%clk 0:03:01]} 6. Be2 {[%clk 0:02:58]}  Nbd7 {[%clk 0:03:02]} 7. O-O {[%clk 0:02:58]}  e5 {[%clk 0:03:03]} 8. d5 {[%clk 0:02:52]}  Nc5 {[%clk 0:02:58]} 9. Qc2 {[%clk 0:02:45]}  a5 {[%clk 0:02:59]} 10. Be3 {[%clk 0:02:44]}  Ng4 {[%clk 0:02:59]} 11. Bxc5 {[%clk 0:02:40]}  dxc5 {[%clk 0:03:00]} 12. Rad1 {[%clk 0:02:37]}  f5 {[%clk 0:02:56]} 13. h3 {[%clk 0:02:33]}  Nh6 {[%clk 0:02:54]} 14. d6 {[%clk 0:02:22]}  cxd6 {[%clk 0:02:52]} 15. Nb5 {[%clk 0:02:23]}  Nf7 {[%clk 0:02:45]} 16. Qd3 {[%clk 0:02:10]}  Ra6 {[%clk 0:02:44]} 17. Nd2 {[%clk 0:02:05]}  Ng5 {[%clk 0:02:36]} 18. exf5 {[%clk 0:01:52]}  gxf5 {[%clk 0:02:31]} 19. Nb1 {[%clk 0:01:52]}  Ne6 {[%clk 0:02:28]} 20. Qd5 {[%clk 0:01:42]}  Qf6 {[%clk 0:01:52]} 21. N1c3 {[%clk 0:01:15]}  Kh8 {[%clk 0:01:45]} 22. Nxd6 {[%clk 0:01:09]}  Rd8 {[%clk 0:01:20]} 23. Ncb5 {[%clk 0:01:07]}  Bf8 {[%clk 0:01:21]} 24. Nxc8 {[%clk 0:00:29]}  Rxd5 {[%clk 0:01:21]} 25. cxd5 {[%clk 0:00:30]}  Nf4 {[%clk 0:01:07]} 26. Bc4 {[%clk 0:00:28]}  Qg5 {[%clk 0:01:06]} 27. g3 {[%clk 0:00:28]}  Nxh3+ {[%clk 0:01:02]} 28. Kg2 {[%clk 0:00:29]}  Nf4+ {[%clk 0:01:02]} 29. Kg1 {[%clk 0:00:29]}  Rh6 {[%clk 0:01:01]} 30. d6 {[%clk 0:00:21]}  Qh5 {[%clk 0:01:00]} 0-1


[Site "https://www.chess.com"]

[Event "Titled Tuesday Blitz February 21 Late 2023"]
[White "Anton Guijarro, David"]
[Black "Bryakin, Mikhail"]
[WhiteFideId "2285525"]
[BlackFideId "4165314"]
[WhiteElo "2690"]
[BlackElo "2455"]
[Result "1-0"]
[Round "10"]
[TimeControl "180+2"]
[Date "2023.02.21"]
[WhiteClock "0:00:19"]
[BlackClock "0:00:18"]

1. Nf3 {[%clk 0:02:59]}  Nf6 {[%clk 0:02:58]} 2. b3 {[%clk 0:02:58]}  c5 {[%clk 0:02:58]} 3. Bb2 {[%clk 0:02:57]}  b6 {[%clk 0:02:56]} 4. g3 {[%clk 0:02:56]}  Bb7 {[%clk 0:02:57]} 5. Bg2 {[%clk 0:02:56]}  g6 {[%clk 0:02:57]} 6. c4 {[%clk 0:02:56]}  Bg7 {[%clk 0:02:57]} 7. O-O {[%clk 0:02:55]}  O-O {[%clk 0:02:58]} 8. d4 {[%clk 0:02:56]}  cxd4 {[%clk 0:02:58]} 9. Qxd4 {[%clk 0:02:56]}  Nc6 {[%clk 0:02:56]} 10. Qc3 {[%clk 0:02:55]}  Rc8 {[%clk 0:02:31]} 11. Rd1 {[%clk 0:02:55]}  Qc7 {[%clk 0:02:31]} 12. Qe1 {[%clk 0:02:45]}  Rfd8 {[%clk 0:02:30]} 13. Nc3 {[%clk 0:02:41]}  Qb8 {[%clk 0:02:26]} 14. e4 {[%clk 0:02:38]}  d6 {[%clk 0:02:26]} 15. Rac1 {[%clk 0:02:37]}  e6 {[%clk 0:02:21]} 16. Qe2 {[%clk 0:02:32]}  Ne8 {[%clk 0:02:17]} 17. Qe3 {[%clk 0:02:21]}  Rd7 {[%clk 0:02:12]} 18. Rd2 {[%clk 0:02:20]}  Rcd8 {[%clk 0:02:12]} 19. Rcd1 {[%clk 0:02:20]}  Ne5 {[%clk 0:02:03]} 20. Nxe5 {[%clk 0:02:16]}  Bxe5 {[%clk 0:02:04]} 21. Ba3 {[%clk 0:02:02]}  Bc6 {[%clk 0:01:56]} 22. Bb2 {[%clk 0:01:50]}  a6 {[%clk 0:01:42]} 23. a4 {[%clk 0:01:48]}  b5 {[%clk 0:01:34]} 24. cxb5 {[%clk 0:01:41]}  axb5 {[%clk 0:01:33]} 25. axb5 {[%clk 0:01:35]}  Bxb5 {[%clk 0:01:33]} 26. Nxb5 {[%clk 0:01:36]}  Bxb2 {[%clk 0:01:28]} 27. Rxb2 {[%clk 0:01:24]}  Qxb5 {[%clk 0:01:29]} 28. b4 {[%clk 0:01:24]}  Rb8 {[%clk 0:01:25]} 29. Bf1 {[%clk 0:01:22]}  Qb6 {[%clk 0:01:25]} 30. Qf4 {[%clk 0:01:19]}  Rc7 {[%clk 0:01:20]} 31. b5 {[%clk 0:01:17]}  Rc5 {[%clk 0:01:20]} 32. Ra2 {[%clk 0:01:14]}  Qc7 {[%clk 0:01:10]} 33. Rda1 {[%clk 0:01:11]}  Qe7 {[%clk 0:00:55]} 34. Ra8 {[%clk 0:01:04]}  Rcc8 {[%clk 0:00:54]} 35. Rxb8 {[%clk 0:00:54]}  Rxb8 {[%clk 0:00:55]} 36. Ra6 {[%clk 0:00:54]}  Qc7 {[%clk 0:00:41]} 37. h4 {[%clk 0:00:49]}  Qc5 {[%clk 0:00:40]} 38. g4 {[%clk 0:00:25]}  h5 {[%clk 0:00:32]} 39. Rc6 {[%clk 0:00:25]}  Qe5 {[%clk 0:00:16]} 40. Qxe5 {[%clk 0:00:25]}  dxe5 {[%clk 0:00:17]} 41. gxh5 {[%clk 0:00:25]}  gxh5 {[%clk 0:00:18]} 42. b6 {[%clk 0:00:26]}  Nf6 {[%clk 0:00:18]} 43. Ba6 {[%clk 0:00:25]}  Kf8 {[%clk 0:00:17]} 44. Rc8+ {[%clk 0:00:19]}  Rxc8 {[%clk 0:00:17]} 45. Bxc8 {[%clk 0:00:19]}  Ke7 {[%clk 0:00:16]} 46. b7 {[%clk 0:00:19]}  Nd7 {[%clk 0:00:17]} 47. Bxd7 {[%clk 0:00:19]}  Kxd7 {[%clk 0:00:18]} 1-0


[Site "https://www.chess.com"]

[Event "Titled Tuesday Blitz February 21 Late 2023"]
[White "Averjanov, Alexey"]
[Black "KhalilMousavi98"]
[WhiteFideId "14109867"]
[WhiteElo "2399"]
[BlackElo "2871"]
[Result "1/2-1/2"]
[Round "10"]
[TimeControl "180+2"]
[Date "2023.02.21"]
[WhiteClock "0:00:12"]
[BlackClock "0:00:04"]

1. d4 {[%clk 0:03:00]}  d5 {[%clk 0:02:59]} 2. c4 {[%clk 0:03:00]}  e6 {[%clk 0:02:59]} 3. Nf3 {[%clk 0:03:00]}  Nf6 {[%clk 0:02:58]} 4. e3 {[%clk 0:03:00]}  c5 {[%clk 0:02:58]} 5. dxc5 {[%clk 0:03:00]}  Bxc5 {[%clk 0:02:58]} 6. a3 {[%clk 0:03:00]}  a6 {[%clk 0:02:58]} 7. b4 {[%clk 0:03:00]}  Bd6 {[%clk 0:02:59]} 8. Bb2 {[%clk 0:03:01]}  O-O {[%clk 0:02:59]} 9. Nbd2 {[%clk 0:03:01]}  Nc6 {[%clk 0:02:58]} 10. Rc1 {[%clk 0:03:01]}  Qe7 {[%clk 0:02:56]} 11. Be2 {[%clk 0:03:01]}  Rd8 {[%clk 0:02:55]} 12. O-O {[%clk 0:02:59]}  dxc4 {[%clk 0:02:56]} 13. Bxc4 {[%clk 0:02:59]}  b5 {[%clk 0:02:56]} 14. Be2 {[%clk 0:02:59]}  Bb7 {[%clk 0:02:56]} 15. Qb3 {[%clk 0:02:59]}  a5 {[%clk 0:02:51]} 16. Bxb5 {[%clk 0:02:56]}  Na7 {[%clk 0:02:51]} 17. Be2 {[%clk 0:02:51]}  axb4 {[%clk 0:02:51]} 18. axb4 {[%clk 0:02:52]}  Bxb4 {[%clk 0:02:51]} 19. Rfd1 {[%clk 0:02:45]}  Rab8 {[%clk 0:02:50]} 20. Qa4 {[%clk 0:02:35]}  Ba8 {[%clk 0:01:54]} 21. Be5 {[%clk 0:02:29]}  Rbc8 {[%clk 0:01:46]} 22. Nf1 {[%clk 0:02:16]}  Bc6 {[%clk 0:01:33]} 23. Qb3 {[%clk 0:02:07]}  Bd5 {[%clk 0:01:30]} 24. Qa4 {[%clk 0:02:06]}  Ne4 {[%clk 0:01:17]} 25. Ng3 {[%clk 0:01:55]}  Nc3 {[%clk 0:01:13]} 26. Bxc3 {[%clk 0:01:55]}  Bxc3 {[%clk 0:01:14]} 27. e4 {[%clk 0:01:39]}  Bc6 {[%clk 0:01:12]} 28. Rxd8+ {[%clk 0:01:32]}  Rxd8 {[%clk 0:01:11]} 29. Qa6 {[%clk 0:01:25]}  Bb4 {[%clk 0:00:49]} 30. Rxc6 {[%clk 0:01:21]}  Nxc6 {[%clk 0:00:49]} 31. Qxc6 {[%clk 0:01:22]}  Bc5 {[%clk 0:00:49]} 32. Nf1 {[%clk 0:01:14]}  Qa7 {[%clk 0:00:48]} 33. Kh1 {[%clk 0:01:06]}  Bxf2 {[%clk 0:00:48]} 34. Qa6 {[%clk 0:01:01]}  Qc5 {[%clk 0:00:45]} 35. Qc4 {[%clk 0:00:58]}  Qe7 {[%clk 0:00:36]} 36. g3 {[%clk 0:00:55]}  h6 {[%clk 0:00:34]} 37. Kg2 {[%clk 0:00:55]}  Ba7 {[%clk 0:00:33]} 38. N1d2 {[%clk 0:00:48]}  Qd6 {[%clk 0:00:32]} 39. Qb5 {[%clk 0:00:42]}  Rb8 {[%clk 0:00:29]} 40. Nc4 {[%clk 0:00:39]}  Qc7 {[%clk 0:00:16]} 41. Qa5 {[%clk 0:00:28]}  Qxa5 {[%clk 0:00:10]} 42. Nxa5 {[%clk 0:00:29]}  Rb2 {[%clk 0:00:10]} 43. Kf1 {[%clk 0:00:29]}  Rb4 {[%clk 0:00:10]} 44. Nc6 {[%clk 0:00:28]}  Ra4 {[%clk 0:00:10]} 45. Nxa7 {[%clk 0:00:27]}  Rxa7 {[%clk 0:00:10]} 46. e5 {[%clk 0:00:28]}  Ra5 {[%clk 0:00:10]} 47. h4 {[%clk 0:00:28]}  f6 {[%clk 0:00:07]} 48. exf6 {[%clk 0:00:27]}  gxf6 {[%clk 0:00:08]} 49. Kf2 {[%clk 0:00:27]}  f5 {[%clk 0:00:08]} 50. Ke3 {[%clk 0:00:25]}  Kg7 {[%clk 0:00:08]} 51. Bc4 {[%clk 0:00:23]}  Kf6 {[%clk 0:00:07]} 52. Bd3 {[%clk 0:00:21]}  e5 {[%clk 0:00:04]} 53. Be2 {[%clk 0:00:22]}  Ra3+ {[%clk 0:00:04]} 54. Kf2 {[%clk 0:00:22]}  e4 {[%clk 0:00:05]} 55. Ne1 {[%clk 0:00:20]}  Ra2 {[%clk 0:00:04]} 56. Ng2 {[%clk 0:00:20]}  Ke5 {[%clk 0:00:04]} 57. Ke3 {[%clk 0:00:20]}  Ra3+ {[%clk 0:00:04]} 58. Kf2 {[%clk 0:00:20]}  Kd4 {[%clk 0:00:04]} 59. Nf4 {[%clk 0:00:20]}  Ra2 {[%clk 0:00:05]} 60. Ne6+ {[%clk 0:00:20]}  Ke5 {[%clk 0:00:05]} 61. Nf4 {[%clk 0:00:20]}  Rb2 {[%clk 0:00:06]} 62. Ke3 {[%clk 0:00:19]}  Rb3+ {[%clk 0:00:06]} 63. Kf2 {[%clk 0:00:20]}  Kd4 {[%clk 0:00:06]} 64. Ne6+ {[%clk 0:00:20]}  Ke5 {[%clk 0:00:06]} 65. Nf4 {[%clk 0:00:20]}  Ra3 {[%clk 0:00:06]} 66. Ng6+ {[%clk 0:00:19]}  Kd4 {[%clk 0:00:06]} 67. Nf4 {[%clk 0:00:19]}  Ra1 {[%clk 0:00:04]} 68. Ne6+ {[%clk 0:00:19]}  Ke5 {[%clk 0:00:04]} 69. Nf4 {[%clk 0:00:19]}  Rh1 {[%clk 0:00:05]} 70. Kg2 {[%clk 0:00:19]}  Rc1 {[%clk 0:00:05]} 71. Kf2 {[%clk 0:00:20]}  Rc3 {[%clk 0:00:05]} 72. Ng6+ {[%clk 0:00:19]}  Kd4 {[%clk 0:00:05]} 73. Nf4 {[%clk 0:00:20]}  Rb3 {[%clk 0:00:04]} 74. Ne6+ {[%clk 0:00:20]}  Kc3 {[%clk 0:00:04]} 75. Ke3 {[%clk 0:00:18]}  Kc2+ {[%clk 0:00:04]} 76. Kf4 {[%clk 0:00:18]}  Kd2 {[%clk 0:00:04]} 77. Bh5 {[%clk 0:00:16]}  e3 {[%clk 0:00:04]} 78. Kxf5 {[%clk 0:00:13]}  Rb5+ {[%clk 0:00:03]} 79. Kg6 {[%clk 0:00:11]}  Rb6 {[%clk 0:00:02]} 80. Kf6 {[%clk 0:00:10]}  e2 {[%clk 0:00:01]} 81. Bxe2 {[%clk 0:00:10]}  Kxe2 {[%clk 0:00:02]} 82. g4 {[%clk 0:00:11]}  Kf3 {[%clk 0:00:03]} 83. g5 {[%clk 0:00:11]}  hxg5 {[%clk 0:00:04]} 84. hxg5 {[%clk 0:00:12]}  Kg4 {[%clk 0:00:04]} 85. g6 {[%clk 0:00:12]}  Rb7 {[%clk 0:00:04]} 86. g7 {[%clk 0:00:11]}  Rxg7 {[%clk 0:00:04]} 87. Nxg7 {[%clk 0:00:12]} 1/2-1/2


[Site "https://www.chess.com"]

[Event "Titled Tuesday Blitz February 21 Late 2023"]
[White "Kanakaris, Georgios"]
[Black "Rustemov, Alexander"]
[WhiteFideId "4209460"]
[BlackFideId "4119002"]
[WhiteElo "2391"]
[BlackElo "2525"]
[Result "1/2-1/2"]
[Round "10"]
[TimeControl "180+2"]
[Date "2023.02.21"]
[WhiteClock "0:00:05"]
[BlackClock "0:00:04"]

1. d4 {[%clk 0:03:00]}  g6 {[%clk 0:02:53]} 2. g3 {[%clk 0:03:00]}  Bg7 {[%clk 0:02:51]} 3. Bg2 {[%clk 0:03:00]}  c5 {[%clk 0:02:51]} 4. d5 {[%clk 0:02:58]}  d6 {[%clk 0:02:48]} 5. e4 {[%clk 0:02:59]}  b5 {[%clk 0:02:48]} 6. Nf3 {[%clk 0:02:52]}  Nf6 {[%clk 0:02:47]} 7. Nbd2 {[%clk 0:02:49]}  O-O {[%clk 0:02:47]} 8. O-O {[%clk 0:02:50]}  Nbd7 {[%clk 0:02:46]} 9. Re1 {[%clk 0:02:48]}  Bb7 {[%clk 0:02:36]} 10. a4 {[%clk 0:02:48]}  a6 {[%clk 0:02:35]} 11. Bf1 {[%clk 0:02:16]}  Qb6 {[%clk 0:02:34]} 12. a5 {[%clk 0:02:15]}  Qc7 {[%clk 0:02:33]} 13. c4 {[%clk 0:02:15]}  b4 {[%clk 0:02:21]} 14. Ra2 {[%clk 0:02:10]}  e6 {[%clk 0:02:21]} 15. b3 {[%clk 0:02:10]}  Rfe8 {[%clk 0:02:14]} 16. Bb2 {[%clk 0:02:06]}  exd5 {[%clk 0:02:05]} 17. cxd5 {[%clk 0:02:02]}  Re7 {[%clk 0:01:58]} 18. Bd3 {[%clk 0:01:58]}  Rae8 {[%clk 0:01:58]} 19. Ba1 {[%clk 0:01:49]}  Bc8 {[%clk 0:01:41]} 20. Kg2 {[%clk 0:01:44]}  h5 {[%clk 0:01:40]} 21. h3 {[%clk 0:01:23]}  Bb7 {[%clk 0:01:36]} 22. Kg1 {[%clk 0:01:08]}  Bc8 {[%clk 0:01:22]} 23. Kg2 {[%clk 0:01:07]}  Nf8 {[%clk 0:01:18]} 24. Re2 {[%clk 0:01:03]}  N8h7 {[%clk 0:01:13]} 25. Qe1 {[%clk 0:00:54]}  Qd7 {[%clk 0:01:09]} 26. Ng1 {[%clk 0:00:46]}  Ng5 {[%clk 0:01:03]} 27. h4 {[%clk 0:00:46]}  Ngh7 {[%clk 0:00:55]} 28. Nc4 {[%clk 0:00:39]}  Bb7 {[%clk 0:00:51]} 29. Nb6 {[%clk 0:00:35]}  Qc7 {[%clk 0:00:50]} 30. Nf3 {[%clk 0:00:31]}  Nf8 {[%clk 0:00:48]} 31. Ng5 {[%clk 0:00:27]}  N8d7 {[%clk 0:00:47]} 32. Nc4 {[%clk 0:00:27]}  Ng4 {[%clk 0:00:42]} 33. Bxg7 {[%clk 0:00:26]}  Kxg7 {[%clk 0:00:43]} 34. Qa1+ {[%clk 0:00:24]}  Kg8 {[%clk 0:00:42]} 35. f3 {[%clk 0:00:23]}  Nge5 {[%clk 0:00:42]} 36. Qd1 {[%clk 0:00:16]}  Nxc4 {[%clk 0:00:30]} 37. Bxc4 {[%clk 0:00:16]}  Ne5 {[%clk 0:00:28]} 38. Re1 {[%clk 0:00:11]}  Bc8 {[%clk 0:00:28]} 39. Qa1 {[%clk 0:00:09]}  Qd7 {[%clk 0:00:27]} 40. Rae2 {[%clk 0:00:08]}  Qc7 {[%clk 0:00:20]} 41. f4 {[%clk 0:00:08]}  Nxc4 {[%clk 0:00:17]} 42. bxc4 {[%clk 0:00:09]}  Bg4 {[%clk 0:00:17]} 43. Re3 {[%clk 0:00:08]}  f6 {[%clk 0:00:17]} 44. Nf3 {[%clk 0:00:07]}  Bxf3+ {[%clk 0:00:15]} 45. Kxf3 {[%clk 0:00:07]}  Kg7 {[%clk 0:00:16]} 46. Kg2 {[%clk 0:00:04]}  Qd7 {[%clk 0:00:16]} 47. R3e2 {[%clk 0:00:03]}  Qg4 {[%clk 0:00:16]} 48. Re3 {[%clk 0:00:03]}  Kf7 {[%clk 0:00:16]} 49. R3e2 {[%clk 0:00:03]}  Kg7 {[%clk 0:00:11]} 50. Re3 {[%clk 0:00:04]}  Rb8 {[%clk 0:00:09]} 51. Qb2 {[%clk 0:00:03]}  Rf8 {[%clk 0:00:07]} 52. R3e2 {[%clk 0:00:03]}  Rfe8 {[%clk 0:00:08]} 53. Re3 {[%clk 0:00:04]}  Qd7 {[%clk 0:00:08]} 54. R3e2 {[%clk 0:00:04]}  Qc7 {[%clk 0:00:08]} 55. Qa1 {[%clk 0:00:04]}  Qd7 {[%clk 0:00:05]} 56. e5 {[%clk 0:00:04]}  fxe5 {[%clk 0:00:04]} 57. fxe5 {[%clk 0:00:05]}  Rxe5 {[%clk 0:00:03]} 58. Rxe5 {[%clk 0:00:06]}  dxe5 {[%clk 0:00:04]} 59. Rxe5 {[%clk 0:00:07]}  Rxe5 {[%clk 0:00:04]} 60. Qxe5+ {[%clk 0:00:08]}  Kf7 {[%clk 0:00:04]} 61. Qf4+ {[%clk 0:00:07]}  Qf5 {[%clk 0:00:04]} 62. Qc7+ {[%clk 0:00:08]}  Kf6 {[%clk 0:00:04]} 63. Qxc5 {[%clk 0:00:08]}  Qe4+ {[%clk 0:00:04]} 64. Kf2 {[%clk 0:00:08]}  Qc2+ {[%clk 0:00:04]} 65. Kf3 {[%clk 0:00:08]}  Qd3+ {[%clk 0:00:04]} 66. Kf2 {[%clk 0:00:08]}  Qc2+ {[%clk 0:00:04]} 67. Kf3 {[%clk 0:00:08]}  Qd1+ {[%clk 0:00:04]} 68. Kf2 {[%clk 0:00:08]}  Qd2+ {[%clk 0:00:04]} 69. Kf3 {[%clk 0:00:09]}  Qd1+ {[%clk 0:00:04]} 70. Kf2 {[%clk 0:00:09]}  b3 {[%clk 0:00:05]} 71. Qb6+ {[%clk 0:00:08]}  Ke5 {[%clk 0:00:03]} 72. Qe3+ {[%clk 0:00:07]}  Kd6 {[%clk 0:00:03]} 73. Qb6+ {[%clk 0:00:07]}  Ke5 {[%clk 0:00:03]} 74. Qe3+ {[%clk 0:00:07]}  Kd6 {[%clk 0:00:03]} 75. Qb6+ {[%clk 0:00:05]}  Ke5 {[%clk 0:00:04]} 1/2-1/2


[Site "https://www.chess.com"]

[Event "Titled Tuesday Blitz February 21 Late 2023"]
[White "Bikuzhin, Maksim"]
[Black "Zhurbinsky, David"]
[WhiteFideId "24128015"]
[BlackFideId "2072904"]
[WhiteElo "2279"]
[BlackElo "2045"]
[Result "1-0"]
[Round "10"]
[TimeControl "180+2"]
[Date "2023.02.21"]
[WhiteClock "0:00:23"]
[BlackClock "0:00:01"]

1. e4 {[%clk 0:03:00]}  e5 {[%clk 0:02:59]} 2. Nf3 {[%clk 0:03:00]}  Nc6 {[%clk 0:02:59]} 3. Bc4 {[%clk 0:02:59]}  Bc5 {[%clk 0:02:59]} 4. c3 {[%clk 0:02:59]}  Nf6 {[%clk 0:03:00]} 5. d4 {[%clk 0:02:59]}  exd4 {[%clk 0:03:01]} 6. O-O {[%clk 0:02:59]}  Nxe4 {[%clk 0:02:30]} 7. cxd4 {[%clk 0:02:59]}  d5 {[%clk 0:02:17]} 8. dxc5 {[%clk 0:02:59]}  dxc4 {[%clk 0:02:17]} 9. Qe2 {[%clk 0:02:59]}  Qd3 {[%clk 0:02:12]} 10. Re1 {[%clk 0:02:59]}  f5 {[%clk 0:02:06]} 11. Nc3 {[%clk 0:02:58]}  O-O {[%clk 0:02:01]} 12. Nxe4 {[%clk 0:02:58]}  fxe4 {[%clk 0:01:57]} 13. Qxe4 {[%clk 0:02:59]}  Bf5 {[%clk 0:01:50]} 14. Qh4 {[%clk 0:02:57]}  Rae8 {[%clk 0:01:39]} 15. Bf4 {[%clk 0:02:38]}  Be4 {[%clk 0:01:20]} 16. Red1 {[%clk 0:02:35]}  Qc2 {[%clk 0:01:05]} 17. Rd2 {[%clk 0:02:35]}  Qa4 {[%clk 0:01:04]} 18. Ne1 {[%clk 0:02:20]}  Qb4 {[%clk 0:00:47]} 19. Be3 {[%clk 0:02:15]}  Bg6 {[%clk 0:00:28]} 20. Qg3 {[%clk 0:02:01]}  Ne5 {[%clk 0:00:20]} 21. h3 {[%clk 0:01:55]}  Nd3 {[%clk 0:00:20]} 22. a3 {[%clk 0:01:51]}  Qb3 {[%clk 0:00:17]} 23. Nxd3 {[%clk 0:01:47]}  cxd3 {[%clk 0:00:17]} 24. Qxc7 {[%clk 0:01:44]}  Qd5 {[%clk 0:00:15]} 25. b4 {[%clk 0:01:40]}  Be4 {[%clk 0:00:10]} 26. Qh2 {[%clk 0:01:28]}  Re6 {[%clk 0:00:11]} 27. Kh1 {[%clk 0:01:22]}  Rg6 {[%clk 0:00:10]} 28. Rg1 {[%clk 0:01:22]}  Qh5 {[%clk 0:00:07]} 29. b5 {[%clk 0:01:17]}  h6 {[%clk 0:00:07]} 30. Rb2 {[%clk 0:01:11]}  Kh7 {[%clk 0:00:05]} 31. Rb4 {[%clk 0:01:08]}  Bd5 {[%clk 0:00:02]} 32. Rd4 {[%clk 0:01:05]}  Rf3 {[%clk 0:00:01]} 33. Rxd5 {[%clk 0:00:53]}  Qxd5 {[%clk 0:00:02]} 34. gxf3 {[%clk 0:00:53]}  Qxf3+ {[%clk 0:00:03]} 35. Rg2 {[%clk 0:00:53]}  d2 {[%clk 0:00:02]} 36. Bxd2 {[%clk 0:00:43]}  Rxg2 {[%clk 0:00:01]} 37. Qxg2 {[%clk 0:00:43]}  Qd1+ {[%clk 0:00:02]} 38. Kh2 {[%clk 0:00:39]}  Qxd2 {[%clk 0:00:03]} 39. Qe4+ {[%clk 0:00:39]}  Kh8 {[%clk 0:00:03]} 40. Qe8+ {[%clk 0:00:37]}  Kh7 {[%clk 0:00:03]} 41. Qe3 {[%clk 0:00:38]}  Qc2 {[%clk 0:00:03]} 42. Qd4 {[%clk 0:00:30]}  Qf5 {[%clk 0:00:02]} 43. a4 {[%clk 0:00:28]}  Qg6 {[%clk 0:00:01]} 44. Qc4 {[%clk 0:00:26]}  a6 {[%clk 0:00:01]} 45. c6 {[%clk 0:00:23]} 1-0


[Site "https://www.chess.com"]

[Event "Titled Tuesday Blitz February 21 Late 2023"]
[White "Goroshkov, Maksym"]
[Black "Yuan, Qingyu"]
[WhiteFideId "14142716"]
[BlackFideId "8609772"]
[WhiteElo "2287"]
[BlackElo "2373"]
[Result "1-0"]
[Round "10"]
[TimeControl "180+2"]
[Date "2023.02.21"]
[WhiteClock "0:00:11"]
[BlackClock "0:00:12"]

1. e4 {[%clk 0:03:00]}  e5 {[%clk 0:03:00]} 2. d4 {[%clk 0:02:59]}  exd4 {[%clk 0:03:00]} 3. c3 {[%clk 0:02:59]}  Qe7 {[%clk 0:03:00]} 4. Bd3 {[%clk 0:02:59]}  d5 {[%clk 0:02:57]} 5. e5 {[%clk 0:02:43]}  Qxe5+ {[%clk 0:02:36]} 6. Ne2 {[%clk 0:02:44]}  dxc3 {[%clk 0:02:35]} 7. Nxc3 {[%clk 0:02:43]}  Bb4 {[%clk 0:02:16]} 8. O-O {[%clk 0:02:42]}  Nf6 {[%clk 0:02:15]} 9. Bf4 {[%clk 0:02:37]}  Qe7 {[%clk 0:02:12]} 10. Nb5 {[%clk 0:02:30]}  Na6 {[%clk 0:02:08]} 11. Bxc7 {[%clk 0:02:10]}  O-O {[%clk 0:02:01]} 12. Rc1 {[%clk 0:02:03]}  Nxc7 {[%clk 0:01:51]} 13. Rxc7 {[%clk 0:01:57]}  Qe5 {[%clk 0:01:44]} 14. a3 {[%clk 0:01:54]}  Ba5 {[%clk 0:01:36]} 15. Rc2 {[%clk 0:01:46]}  a6 {[%clk 0:01:26]} 16. Nbd4 {[%clk 0:01:44]}  Bg4 {[%clk 0:01:17]} 17. h3 {[%clk 0:01:38]}  Bh5 {[%clk 0:01:14]} 18. g4 {[%clk 0:01:32]}  Bg6 {[%clk 0:01:07]} 19. Nf5 {[%clk 0:01:25]}  Bxf5 {[%clk 0:00:50]} 20. Bxf5 {[%clk 0:01:26]}  g6 {[%clk 0:00:48]} 21. Bd3 {[%clk 0:01:22]}  Ne4 {[%clk 0:00:47]} 22. Bxe4 {[%clk 0:01:17]}  dxe4 {[%clk 0:00:41]} 23. Qd4 {[%clk 0:01:08]}  Qe7 {[%clk 0:00:33]} 24. Ng3 {[%clk 0:01:00]}  Rfe8 {[%clk 0:00:27]} 25. Re2 {[%clk 0:00:57]}  Rad8 {[%clk 0:00:13]} 26. Qa4 {[%clk 0:00:57]}  Bc7 {[%clk 0:00:08]} 27. Nxe4 {[%clk 0:00:57]}  Kg7 {[%clk 0:00:05]} 28. Ng3 {[%clk 0:00:54]}  Qf8 {[%clk 0:00:04]} 29. Rxe8 {[%clk 0:00:53]}  Qxe8 {[%clk 0:00:04]} 30. Qb3 {[%clk 0:00:48]}  Qc6 {[%clk 0:00:04]} 31. Re1 {[%clk 0:00:43]}  Bxg3 {[%clk 0:00:04]} 32. Qxg3 {[%clk 0:00:42]}  Qf6 {[%clk 0:00:04]} 33. b4 {[%clk 0:00:28]}  Rd2 {[%clk 0:00:03]} 34. Re3 {[%clk 0:00:28]}  Qd4 {[%clk 0:00:02]} 35. Qe5+ {[%clk 0:00:10]}  Qxe5 {[%clk 0:00:02]} 36. Rxe5 {[%clk 0:00:11]}  Rd3 {[%clk 0:00:02]} 37. Re7 {[%clk 0:00:11]}  b5 {[%clk 0:00:02]} 38. Ra7 {[%clk 0:00:08]}  Rxa3 {[%clk 0:00:03]} 39. Kg2 {[%clk 0:00:07]}  h6 {[%clk 0:00:03]} 40. f4 {[%clk 0:00:06]}  Kf6 {[%clk 0:00:03]} 41. h4 {[%clk 0:00:06]}  Ra4 {[%clk 0:00:03]} 42. Kf3 {[%clk 0:00:06]}  Ra3+ {[%clk 0:00:03]} 43. Ke4 {[%clk 0:00:06]}  h5 {[%clk 0:00:04]} 44. g5+ {[%clk 0:00:04]}  Kg7 {[%clk 0:00:04]} 45. f5 {[%clk 0:00:03]}  gxf5+ {[%clk 0:00:04]} 46. Kxf5 {[%clk 0:00:04]}  Ra4 {[%clk 0:00:05]} 47. g6 {[%clk 0:00:04]}  Rxb4 {[%clk 0:00:04]} 48. Rxf7+ {[%clk 0:00:04]}  Kg8 {[%clk 0:00:05]} 49. Ra7 {[%clk 0:00:05]}  Rb1 {[%clk 0:00:04]} 50. Kf6 {[%clk 0:00:04]}  Rf1+ {[%clk 0:00:04]} 51. Kg5 {[%clk 0:00:05]}  b4 {[%clk 0:00:04]} 52. Rxa6 {[%clk 0:00:04]}  b3 {[%clk 0:00:04]} 53. Rb6 {[%clk 0:00:04]}  Rf3 {[%clk 0:00:04]} 54. Kh6 {[%clk 0:00:05]}  Kf8 {[%clk 0:00:04]} 55. g7+ {[%clk 0:00:05]}  Kf7 {[%clk 0:00:04]} 56. Kh7 {[%clk 0:00:04]}  Rg3 {[%clk 0:00:04]} 57. Rb7+ {[%clk 0:00:05]}  Kf6 {[%clk 0:00:04]} 58. g8=Q {[%clk 0:00:05]}  Rxg8 {[%clk 0:00:04]} 59. Kxg8 {[%clk 0:00:06]}  Kf5 {[%clk 0:00:05]} 60. Rxb3 {[%clk 0:00:06]}  Kg4 {[%clk 0:00:06]} 61. Rb4+ {[%clk 0:00:07]}  Kg3 {[%clk 0:00:06]} 62. Kg7 {[%clk 0:00:07]}  Kh3 {[%clk 0:00:07]} 63. Kg6 {[%clk 0:00:08]}  Kg3 {[%clk 0:00:08]} 64. Kxh5 {[%clk 0:00:08]}  Kf3 {[%clk 0:00:09]} 65. Kg5 {[%clk 0:00:09]}  Ke3 {[%clk 0:00:10]} 66. h5 {[%clk 0:00:10]}  Kd3 {[%clk 0:00:11]} 67. Rg4 {[%clk 0:00:10]}  Kc3 {[%clk 0:00:12]} 68. h6 {[%clk 0:00:11]} 1-0


[Site "https://www.chess.com"]